fUSD/lending_fUSD_20250905
["ID","MTS","AMOUNT","RATE_DAILY","PERIOD"]
[383673574,1757080266879,-400.0,0.00026257,2]
[383673575,1757080266888,-400.0,0.00026257,2]
[383673576,1757080266899,-454.26447963,0.00026257,2]
[383673577,1757080266908,-400.0,0.00026257,2]
[383673578,1757080266917,-400.0,0.00026257,2]
[383673579,1757080266927,-400.0,0.00026257,2]
[383673580,1757080266937,-181.22075999,0.00026263,2]
[383673581,1757080266947,-500.0,0.00026267,2]
[383673582,1757080266957,-213.0,0.0002628,2]
[383673583,1757080266966,-214.0,0.0002628,2]
[383673584,1757080266977,-206.0,0.0002628,2]
[383673585,1757080266986,-215.12875862,0.00026286,2]
[383673586,1757080266995,-15512.75242784,0.00026292,2]
[383673587,1757080267006,-235.53272,0.00026299,2]
[383673588,1757080267016,-150.868106,0.00026299,2]
[383673589,1757080267025,-400.0,0.00026299,2]
[383673590,1757080267035,-1177.68,0.00026299,2]
[383673591,1757080267047,-2245.68,0.00026299,2]
[383673592,1757080267057,-557.5,0.00026299,2]
[383673593,1757080267067,-400.0,0.00026299,2]
[383673594,1757080267076,-1291.11,0.00026299,2]
[383673595,1757080267085,-400.0,0.00026299,2]
[383673596,1757080267095,-400.0,0.00026299,2]
[383673597,1757080267105,-400.0,0.00026299,2]
[383673598,1757080267115,-400.0,0.00026299,2]
[383673599,1757080267125,-400.0,0.00026299,2]
[383673600,1757080267135,-400.0,0.00026299,2]
[383673601,1757080267144,-400.0,0.00026299,2]
[383673602,1757080267153,-400.0,0.00026299,2]
[383673603,1757080267163,-400.0,0.00026299,2]
[383673604,1757080267173,-400.0,0.00026299,2]
[383673605,1757080267183,-400.0,0.00026299,2]
[383673606,1757080267192,-400.0,0.000263,2]
[383673607,1757080267203,-400.0,0.000263,2]
[383673608,1757080267213,-400.0,0.000263,2]
[383673609,1757080267222,-400.0,0.000263,2]
[383673610,1757080267233,-400.0,0.000263,2]
[383673611,1757080267243,-400.0,0.000263,2]
[383673612,1757080267254,-400.0,0.000263,2]
[383673613,1757080267264,-400.0,0.000263,2]
[383673614,1757080267274,-400.0,0.000263,2]
[383673615,1757080267284,-400.0,0.000263,2]
[383673616,1757080267295,-400.0,0.000263,2]
[383673617,1757080267305,-400.0,0.000263,2]
[383673618,1757080267314,-400.0,0.000263,2]
[383673619,1757080267323,-400.0,0.000263,2]
[383673620,1757080267332,-400.0,0.000263,2]
[383673621,1757080267342,-400.0,0.000263,2]
[383673622,1757080267352,-400.0,0.000263,2]
[383673623,1757080267362,-400.0,0.000263,2]
[383673624,1757080267371,-400.0,0.000263,2]
[383673625,1757080267381,-400.0,0.000263,2]
[383673626,1757080267390,-400.0,0.000263,2]
[383673627,1757080267399,-400.0,0.000263,2]
[383673628,1757080267408,-421.06918486,0.000263,2]
[383673629,1757080267418,-400.0,0.000263,2]
[383673630,1757080267427,-400.0,0.000263,2]
[383673631,1757080267437,-400.0,0.000263,2]
[383673632,1757080267447,-400.0,0.000263,2]
[383673633,1757080267456,-400.0,0.000263,2]
[383673634,1757080267466,-400.0,0.000263,2]
[383673635,1757080267475,-400.0,0.000263,2]
[383673636,1757080267490,-400.0,0.000263,2]
[383673637,1757080267500,-400.0,0.000263,2]
[383673638,1757080267510,-370.9065625,0.000263,2]
[383673639,1757080267519,-400.0,0.000263,2]
[383673640,1757080267531,-437.19,0.000263,2]
[383673641,1757080267541,-400.0,0.000263,2]
[383673642,1757080267551,-400.0,0.000263,2]
[383673643,1757080267561,-400.0,0.000263,2]
[383673644,1757080267570,-400.7,0.000263,2]
[383673645,1757080267580,-400.0,0.000263,2]
[383673646,1757080267589,-459.99,0.000263,2]
[383673647,1757080267599,-400.0,0.000263,2]
[383673648,1757080267609,-400.0,0.000263,2]
[383673649,1757080267619,-465.19,0.000263,2]
[383673650,1757080267629,-491.06,0.000263,2]
[383673651,1757080267638,-400.0,0.000263,2]
[383673652,1757080267649,-400.0,0.000263,2]
[383673653,1757080267659,-412.5,0.000263,2]
[383673654,1757080267669,-448.01836295,0.000263,2]
[383673655,1757080267678,-400.0,0.000263,2]
[383673656,1757080267688,-400.0,0.000263,2]
[383673657,1757080267698,-691.23,0.000263,2]
[383673658,1757080267707,-1702.49,0.000263,2]
[383673659,1757080267716,-400.0,0.000263,2]
[383673660,1757080267726,-421.74229522,0.000263,2]
[383673661,1757080267735,-400.0,0.000263,2]
[383673662,1757080267744,-400.0,0.000263,2]
[383673663,1757080267754,-1927.13,0.000263,2]
[383673664,1757080267764,-400.0,0.000263,2]
[383673665,1757080267773,-400.0,0.000263,2]
[383673666,1757080267783,-400.0,0.000263,2]
[383673667,1757080267794,-413.14,0.000263,2]
[383673668,1757080267803,-400.0,0.000263,2]
[383673669,1757080267813,-400.0,0.000263,2]
[383673670,1757080267823,-400.0,0.000263,2]
[383673671,1757080267832,-400.0,0.000263,2]
[383673672,1757080267842,-400.0,0.000263,2]
[383673673,1757080267851,-400.0,0.000263,2]
[383673674,1757080267862,-400.0,0.000263,2]
[383673675,1757080267871,-400.0,0.000263,2]
[383673676,1757080267881,-835.85,0.000263,2]
[383673677,1757080267890,-400.0,0.000263,2]
[383673678,1757080267900,-400.0,0.000263,2]
[383673679,1757080267910,-400.0,0.000263,2]
[383673680,1757080267919,-400.0,0.000263,2]
[383673681,1757080267929,-415.3,0.000263,2]
[383673682,1757080267939,-400.0,0.000263,2]
[383673683,1757080267949,-400.0,0.000263,2]
[383673684,1757080267958,-400.0,0.000263,2]
[383673685,1757080267967,-400.0,0.000263,2]
[383673686,1757080267977,-1036.34,0.000263,2]
[383673687,1757080267987,-400.0,0.000263,2]
[383673688,1757080267997,-733.05,0.000263,2]
[383673689,1757080268006,-400.0,0.000263,2]
[383673690,1757080268017,-1500.11,0.000263,2]
[383673691,1757080268027,-400.0,0.000263,2]
[383673692,1757080268038,-400.0,0.000263,2]
[383673693,1757080268048,-956.58,0.000263,2]
[383673694,1757080268058,-400.0,0.000263,2]
[383673695,1757080268068,-400.0,0.000263,2]
[383673696,1757080268078,-400.0,0.000263,2]
[383673697,1757080268087,-400.0,0.000263,2]
[383673698,1757080268097,-400.0,0.000263,2]
[383673699,1757080268108,-400.0,0.000263,2]
[383673700,1757080268118,-400.0,0.000263,2]
[383673701,1757080268128,-400.0,0.000263,2]
[383673702,1757080268138,-409.84937437,0.000263,2]
[383673703,1757080268148,-400.0,0.000263,2]
[383673704,1757080268157,-400.0,0.000263,2]
[383673705,1757080268167,-400.0,0.000263,2]
[383673706,1757080268177,-400.0,0.000263,2]
[383673707,1757080268187,-400.0,0.000263,2]
[383673708,1757080268196,-400.0,0.000263,2]
[383673709,1757080268207,-400.0,0.000263,2]
[383673710,1757080268218,-400.0,0.000263,2]
[383673711,1757080268228,-400.0,0.000263,2]
[383673712,1757080268238,-502.16053225,0.000263,2]
[383673713,1757080268247,-463.62,0.000263,2]
[383673714,1757080268258,-820.22,0.000263,2]
[383673715,1757080268269,-400.0,0.000263,2]
[383673716,1757080268278,-400.0,0.000263,2]
[383673717,1757080268291,-400.0,0.000263,2]
[383673718,1757080268301,-400.0,0.000263,2]
[383673719,1757080268311,-1070.14,0.000263,2]
[383673720,1757080268321,-407.15,0.000263,2]
[383673721,1757080268332,-400.0,0.000263,2]
[383673722,1757080268342,-1861.07,0.000263,2]
[383673723,1757080268352,-400.0,0.000263,2]
[383673724,1757080268362,-400.0,0.000263,2]
[383673725,1757080268372,-400.0,0.000263,2]
[383673726,1757080268382,-400.0,0.00026301,2]
[383673727,1757080268391,-400.0,0.00026301,2]
[383673728,1757080268400,-400.0,0.00026301,2]
[383673729,1757080268410,-400.0,0.00026301,2]
[383673730,1757080268420,-400.0,0.00026301,2]
[383673731,1757080268429,-400.0,0.00026301,2]
[383673732,1757080268439,-157.42203785,0.00026301,2]
[383673733,1757080268448,-400.0,0.00026301,2]
[383673734,1757080268458,-400.0,0.00026301,2]
[383673735,1757080268468,-400.0,0.00026301,2]
[383673736,1757080268477,-518.59,0.00026301,2]
[383673737,1757080268491,-400.0,0.00026301,2]
[383673738,1757080268500,-400.0,0.00026301,2]
[383673739,1757080268510,-400.0,0.00026301,2]
[383673740,1757080268519,-400.0,0.00026301,2]
[383673741,1757080268529,-525.69703938,0.00026301,2]
[383673742,1757080268541,-400.0,0.00026301,2]
[383673743,1757080268551,-400.0,0.00026301,2]
[383673744,1757080268560,-400.0,0.00026301,2]
[383673745,1757080268570,-400.0,0.00026301,2]
[383673746,1757080268580,-403.89500027,0.00026301,2]
[383673747,1757080268590,-400.0,0.00026301,2]
[383673748,1757080268599,-477.68280923,0.00026301,2]
[383673749,1757080268609,-400.0,0.00026301,2]
[383673750,1757080268618,-259.06239341,0.00026301,2]
[383673751,1757080268628,-400.0,0.00026301,2]
[383673752,1757080268638,-400.0,0.00026301,2]
[383673753,1757080268647,-400.0,0.00026301,2]
[383673754,1757080268656,-321.50824871,0.00026301,2]
[383673755,1757080268666,-400.0,0.00026301,2]
[383673756,1757080268676,-400.0,0.00026301,2]
[383673757,1757080268685,-400.0,0.00026301,2]
[383673758,1757080268695,-400.0,0.00026301,2]
[383673759,1757080268705,-445.57910517,0.00026301,2]
[383673760,1757080268851,-455.55,0.00026301,2]
[383673761,1757080268861,-400.0,0.00026301,2]
[383673762,1757080268871,-778.08,0.00026301,2]
[383673763,1757080268880,-400.0,0.00026301,2]
[383673764,1757080268889,-462.34246207,0.00026301,2]
[383673765,1757080268899,-400.0,0.00026301,2]
[383673766,1757080268909,-400.0,0.00026301,2]
[383673767,1757080268919,-400.0,0.00026301,2]
[383673768,1757080268929,-400.0,0.00026301,2]
[383673769,1757080268938,-400.0,0.00026301,2]
[383673770,1757080268947,-400.0,0.00026301,2]
[383673771,1757080268957,-400.0,0.00026301,2]
[383673772,1757080268966,-400.0,0.00026301,2]
[383673773,1757080268976,-481.02,0.00026301,2]
[383673774,1757080268986,-400.0,0.00026301,2]
[383673775,1757080268996,-400.0,0.00026301,2]
[383673776,1757080269006,-400.0,0.00026301,2]
[383673777,1757080269017,-459.80747042,0.00026301,2]
[383673778,1757080269027,-400.0,0.00026301,2]
[383673779,1757080269039,-400.0,0.00026301,2]
[383673780,1757080269048,-400.0,0.00026301,2]
[383673781,1757080269057,-400.0,0.00026301,2]
[383673782,1757080269066,-400.0,0.00026301,2]
[383673783,1757080269075,-400.0,0.00026301,2]
[383673784,1757080269085,-400.0,0.00026301,2]
[383673785,1757080269094,-400.0,0.00026301,2]
[383673786,1757080269103,-400.0,0.00026301,2]
[383673787,1757080269113,-400.0,0.00026301,2]
[383673788,1757080269122,-400.0,0.00026301,2]
[383673789,1757080269133,-400.0,0.00026301,2]
[383673790,1757080269142,-533.63,0.00026301,2]
[383673791,1757080269152,-400.0,0.00026301,2]
[383673792,1757080269163,-261.50580291,0.00026301,2]
[383673793,1757080269173,-163.25,0.00026301,2]
[383673794,1757080269183,-400.0,0.00026301,2]
[383673795,1757080269193,-300.0,0.00026301,2]
[383673796,1757080269204,-638.3,0.00026301,2]
[383673797,1757080269214,-400.0,0.00026301,2]
[383673798,1757080269225,-1880.91,0.00026301,2]
[383673799,1757080269235,-400.0,0.00026301,2]
[383673800,1757080269244,-400.0,0.00026301,2]
[383673801,1757080269254,-400.0,0.00026301,2]
[383673802,1757080269264,-400.0,0.00026301,2]
[383673803,1757080269274,-400.0,0.00026301,2]
[383673804,1757080269284,-514.06,0.00026301,2]
[383673805,1757080269295,-400.0,0.00026301,2]
[383673806,1757080269306,-400.0,0.00026301,2]
[383673807,1757080269316,-400.0,0.00026301,2]
[383673808,1757080269325,-400.0,0.00026301,2]
[383673809,1757080269335,-400.0,0.00026301,2]
[383673810,1757080269345,-400.0,0.00026301,2]
[383673811,1757080269355,-469.63967014,0.00026301,2]
[383673812,1757080269365,-400.0,0.00026301,2]
[383673813,1757080269375,-205.48,0.00026301,2]
[383673814,1757080269384,-400.0,0.00026301,2]
[383673815,1757080269394,-510.36,0.00026301,2]
[383673816,1757080269403,-161.94,0.00026301,2]
[383673817,1757080269414,-415.61,0.00026301,2]
[383673818,1757080269424,-319.29506078,0.00026301,2]
[383673819,1757080269434,-400.0,0.00026301,2]
[383673820,1757080269443,-400.0,0.00026301,2]
[383673821,1757080269453,-404.52,0.00026301,2]
[383673822,1757080269462,-400.0,0.00026301,2]
[383673823,1757080269472,-164.34121598,0.00026301,2]
[383673824,1757080269486,-400.0,0.00026301,2]
[383673825,1757080269495,-400.0,0.00026301,2]
[383673826,1757080269505,-239.70208367,0.00026301,2]
[383673827,1757080269515,-400.0,0.00026301,2]
[383673828,1757080269525,-218.52,0.00026301,2]
[383673829,1757080269535,-398.55768355,0.00026301,2]
[383673830,1757080269546,-1096.06,0.00026301,2]
[383673831,1757080269559,-400.0,0.00026301,2]
[383673832,1757080269568,-400.0,0.00026301,2]
[383673833,1757080269580,-402.0,0.00026301,2]
[383673834,1757080269590,-400.0,0.00026301,2]
[383673835,1757080269600,-400.0,0.00026301,2]
[383673836,1757080269610,-816.55,0.00026301,2]
[383673837,1757080269619,-168.0,0.00026353,2]
[383673838,1757080269629,-500.0,0.00026368,2]
[383673839,1757080269638,-199.49284104,0.00026368,2]
[383673840,1757080269649,-912.04210124,0.00026368,2]
[383673841,1757080269659,-1332.69,0.00026369,2]
[383673842,1757080269668,-400.0,0.00026369,2]
[383673843,1757080269678,-400.0,0.00026369,2]
[383673844,1757080269688,-716.83,0.00026369,2]
[383673845,1757080269697,-400.0,0.00026369,2]
[383673846,1757080269707,-400.0,0.00026369,2]
[383673847,1757080269717,-3437.21,0.00026369,2]
[383673848,1757080269726,-400.0,0.00026369,2]
[383673849,1757080269737,-400.0,0.00026369,2]
[383673850,1757080269746,-400.0,0.00026369,2]
[383673851,1757080269758,-400.0,0.00026369,2]
[383673852,1757080269768,-400.0,0.00026369,2]
[383673853,1757080269778,-296.01,0.00026395,2]
[383673854,1757080269788,-3276.06166675,0.00026447,2]
[383673855,1757080269800,-192.0,0.0002647,2]
[383673856,1757080269810,-275.07,0.00026472,2]
[383673857,1757080269820,-425.55,0.00026474,2]
[383673858,1757080269830,-2516.71,0.00026474,2]
[383673859,1757080269840,-400.0,0.00026474,2]
[383673860,1757080269850,-400.0,0.00026474,2]
[383673861,1757080269859,-400.0,0.00026474,2]
[383673862,1757080269869,-400.0,0.00026474,2]
[383673863,1757080269879,-400.0,0.00026474,2]
[383673864,1757080269889,-4574.52,0.00026474,2]
[383673865,1757080269899,-421.7,0.00026474,2]
[383673866,1757080269908,-528.19,0.00026474,2]
[383673867,1757080269919,-1398.32,0.00026474,2]
[383673868,1757080269928,-850.97,0.00026474,2]
[383673869,1757080269939,-400.0,0.00026474,2]
[383673870,1757080269949,-400.0,0.00026474,2]
[383673871,1757080269959,-400.0,0.00026474,2]
[383673872,1757080269968,-400.0,0.00026474,2]
[383673873,1757080269978,-157.21794,0.00026474,2]
[383673874,1757080269989,-606.33,0.00026474,2]
[383673875,1757080269999,-400.0,0.00026474,2]
[383673876,1757080270008,-12711.43073595,0.000265,2]
[383673877,1757080270018,-168.0,0.00026526,2]
[383673878,1757080270028,-13543.64390397,0.00026529,2]
[383673879,1757080270039,-400.0,0.0002653,2]
[383673880,1757080270050,-400.0,0.0002653,2]
[383673881,1757080270061,-400.0,0.00026531,2]
[383673882,1757080270071,-215.85992747,0.00026531,2]
[383673883,1757080270081,-400.0,0.00026531,2]
[383673884,1757080270090,-400.0,0.00026531,2]
[383673885,1757080270102,-400.0,0.00026531,2]
[383673886,1757080270112,-283.94,0.00026531,2]
[383673887,1757080270122,-548.1,0.00026531,2]
[383673888,1757080270132,-864.95,0.00026531,2]
[383673889,1757080270142,-400.0,0.00026531,2]
[383673890,1757080270152,-175.22,0.00026531,2]
[383673891,1757080270162,-400.0,0.00026531,2]
[383673892,1757080270172,-400.0,0.00026531,2]
[383673893,1757080270181,-400.0,0.00026531,2]
[383673894,1757080270191,-279.7,0.00026531,2]
[383673895,1757080270203,-343.5,0.00026531,2]
[383673896,1757080270213,-400.0,0.00026531,2]
[383673897,1757080270223,-400.0,0.00026531,2]
[383673898,1757080270234,-500.0,0.00026531,2]
[383673899,1757080270243,-400.0,0.00026531,2]
[383673900,1757080270253,-528.51635111,0.00026531,2]
[383673901,1757080270265,-618.59,0.00026531,2]
[383673902,1757080270275,-499.81719488,0.00026531,2]
[383673903,1757080270284,-400.0,0.00026531,2]
[383673904,1757080270296,-435.11,0.00026531,2]
[383673905,1757080270305,-159.06,0.00026531,2]
[383673906,1757080270315,-247.56,0.00026531,2]
[383673907,1757080270325,-400.0,0.00026531,2]
[383673908,1757080270334,-400.0,0.00026531,2]
[383673909,1757080270344,-302.3071106,0.00026531,2]
[383673910,1757080270353,-400.0,0.00026531,2]
[383673911,1757080270363,-165.08,0.00026541,2]
[383673912,1757080270372,-500.0,0.00026541,2]
[383673913,1757080270382,-150.868106,0.00026573,2]
[383673914,1757080270392,-235.53272,0.00026573,2]
[383673915,1757080270402,-400.0,0.00026573,2]
[383673916,1757080270411,-1177.68,0.00026573,2]
[383673917,1757080270421,-2245.68,0.00026573,2]
[383673918,1757080270431,-557.5,0.00026573,2]
[383673919,1757080270441,-400.0,0.00026573,2]
[383673920,1757080270451,-1291.11,0.00026573,2]
[383673921,1757080270460,-399.43,0.00026573,2]
[383673922,1757080270471,-400.0,0.00026573,2]
[383673923,1757080270482,-400.0,0.00026573,2]
[383673924,1757080270493,-400.0,0.00026573,2]
[383673925,1757080270503,-400.0,0.00026573,2]
[383673926,1757080270513,-400.0,0.00026573,2]
[383673927,1757080270522,-400.0,0.00026573,2]
[383673928,1757080270532,-400.0,0.00026573,2]
[383673929,1757080270543,-400.0,0.00026573,2]
[383673930,1757080270553,-400.0,0.00026573,2]
[383673931,1757080270563,-400.0,0.00026573,2]
[383673932,1757080270573,-400.0,0.00026574,2]
[383673933,1757080270582,-265.33161472,0.00026574,2]
[383673934,1757080270591,-400.0,0.00026574,2]
[383673935,1757080270601,-400.0,0.00026574,2]
[383673936,1757080270611,-400.0,0.00026574,2]
[383673937,1757080270621,-400.0,0.00026574,2]
[383673938,1757080270630,-400.0,0.00026574,2]
[383673939,1757080270640,-400.0,0.00026574,2]
[383673940,1757080270649,-400.0,0.00026574,2]
[383673941,1757080270659,-400.0,0.00026574,2]
[383673942,1757080270670,-400.0,0.00026574,2]
[383673943,1757080270680,-400.0,0.00026574,2]
[383673944,1757080270689,-400.0,0.00026574,2]
[383673945,1757080270699,-400.0,0.00026574,2]
[383673946,1757080270709,-400.0,0.00026574,2]
[383673947,1757080270718,-400.0,0.00026574,2]
[383673948,1757080270728,-400.0,0.00026574,2]
[383673949,1757080270738,-400.0,0.00026574,2]
[383673950,1757080270748,-400.0,0.00026574,2]
[383673951,1757080270758,-400.0,0.00026574,2]
[383673952,1757080270767,-400.0,0.00026574,2]
[383673953,1757080270777,-400.0,0.00026574,2]
[383673954,1757080270787,-413.92,0.00026574,2]
[383673955,1757080270797,-400.0,0.00026574,2]
[383673956,1757080270807,-467.40115179,0.00026574,2]
[383673957,1757080270820,-400.0,0.00026574,2]
[383673958,1757080270829,-526.54188813,0.00026574,2]
[383673959,1757080270839,-465.25,0.00026574,2]
[383673960,1757080270850,-400.0,0.00026574,2]
[383673961,1757080270859,-400.0,0.00026574,2]
[383673962,1757080270870,-299.53870262,0.00026574,2]
[383673963,1757080270880,-400.0,0.00026574,2]
[383673964,1757080270889,-400.0,0.00026574,2]
[383673965,1757080270899,-400.0,0.00026574,2]
[383673966,1757080270909,-400.0,0.00026574,2]
[383673967,1757080270919,-400.7,0.00026574,2]
[383673968,1757080270928,-400.0,0.00026574,2]
[383673969,1757080270937,-459.99,0.00026574,2]
[383673970,1757080270947,-400.0,0.00026574,2]
[383673971,1757080270956,-400.0,0.00026574,2]
[383673972,1757080270967,-491.06,0.00026574,2]
[383673973,1757080270976,-400.0,0.00026574,2]
[383673974,1757080270986,-400.0,0.00026574,2]
[383673975,1757080270996,-400.0,0.00026574,2]
[383673976,1757080271006,-484.79,0.00026574,2]
[383673977,1757080271015,-691.23,0.00026574,2]
[383673978,1757080271025,-1702.49,0.00026574,2]
[383673979,1757080271035,-400.0,0.00026574,2]
[383673980,1757080271044,-400.0,0.00026574,2]
[383673981,1757080271054,-400.0,0.00026574,2]
[383673982,1757080271063,-1927.13,0.00026574,2]
[383673983,1757080271073,-400.0,0.00026574,2]
[383673984,1757080271083,-400.0,0.00026574,2]
[383673985,1757080271093,-400.0,0.00026574,2]
[383673986,1757080271103,-413.14,0.00026574,2]
[383673987,1757080271114,-400.0,0.00026574,2]
[383673988,1757080271124,-400.0,0.00026574,2]
[383673989,1757080271134,-400.0,0.00026574,2]
[383673990,1757080271143,-400.0,0.00026574,2]
[383673991,1757080271153,-400.0,0.00026574,2]
[383673992,1757080271163,-400.0,0.00026574,2]
[383673993,1757080271174,-400.0,0.00026574,2]
[383673994,1757080271184,-400.0,0.00026574,2]
[383673995,1757080271195,-835.85,0.00026574,2]
[383673996,1757080271206,-400.0,0.00026574,2]
[383673997,1757080271216,-515.57725855,0.00026574,2]
[383673998,1757080271226,-400.0,0.00026574,2]
[383673999,1757080271236,-400.0,0.00026574,2]
[383674000,1757080271246,-400.0,0.00026574,2]
[383674001,1757080271255,-400.0,0.00026574,2]
[383674002,1757080271265,-400.0,0.00026574,2]
[383674003,1757080271275,-1036.34,0.00026574,2]
[383674004,1757080271285,-151.12108338,0.00026574,2]
[383674005,1757080271295,-733.05,0.00026574,2]
[383674006,1757080271305,-400.0,0.00026574,2]
[383674007,1757080271315,-1500.11,0.00026574,2]
[383674008,1757080271325,-400.0,0.00026574,2]
[383674009,1757080271335,-400.0,0.00026574,2]
[383674010,1757080271345,-956.58,0.00026574,2]
[383674011,1757080271355,-400.0,0.00026574,2]
[383674012,1757080271366,-400.0,0.00026574,2]
[383674013,1757080271375,-400.0,0.00026574,2]
[383674014,1757080271385,-400.0,0.00026574,2]
[383674015,1757080271394,-400.0,0.00026574,2]
[383674016,1757080271403,-400.0,0.00026574,2]
[383674017,1757080271412,-400.0,0.00026574,2]
[383674018,1757080271422,-400.0,0.00026574,2]
[383674019,1757080271432,-400.0,0.00026574,2]
[383674020,1757080271442,-400.0,0.00026574,2]
[383674021,1757080271452,-400.0,0.00026574,2]
[383674022,1757080271462,-400.0,0.00026574,2]
[383674023,1757080271471,-400.0,0.00026574,2]
[383674024,1757080271484,-400.0,0.00026574,2]
[383674025,1757080271626,-400.0,0.00026574,2]
[383674026,1757080271637,-400.0,0.00026574,2]
[383674027,1757080271647,-463.62,0.00026574,2]
[383674028,1757080271656,-820.22,0.00026574,2]
[383674029,1757080271666,-400.0,0.00026574,2]
[383674030,1757080271676,-400.0,0.00026574,2]
[383674031,1757080271686,-400.0,0.00026574,2]
[383674032,1757080271695,-400.0,0.00026574,2]
[383674033,1757080271705,-1070.14,0.00026574,2]
[383674034,1757080271715,-407.15,0.00026574,2]
[383674035,1757080271724,-400.0,0.00026574,2]
[383674036,1757080271734,-1861.07,0.00026574,2]
[383674037,1757080271743,-400.0,0.00026574,2]
[383674038,1757080271753,-400.0,0.00026574,2]
[383674039,1757080271762,-400.0,0.00026574,2]
[383674040,1757080271772,-400.0,0.00026575,2]
[383674041,1757080271781,-400.0,0.00026575,2]
[383674042,1757080271791,-492.31455446,0.00026575,2]
[383674043,1757080271801,-400.0,0.00026575,2]
[383674044,1757080271810,-400.0,0.00026575,2]
[383674045,1757080271819,-400.0,0.00026575,2]
[383674046,1757080271828,-400.0,0.00026575,2]
[383674047,1757080271838,-400.0,0.00026575,2]
[383674048,1757080271848,-400.0,0.00026575,2]
[383674049,1757080271858,-518.59,0.00026575,2]
[383674050,1757080271867,-400.0,0.00026575,2]
[383674051,1757080271877,-400.0,0.00026575,2]
[383674052,1757080271886,-352.15678274,0.00026575,2]
[383674053,1757080271896,-400.0,0.00026575,2]
[383674054,1757080271905,-400.0,0.00026575,2]
[383674055,1757080271915,-400.0,0.00026575,2]
[383674056,1757080271924,-400.0,0.00026575,2]
[383674057,1757080271934,-400.0,0.00026575,2]
[383674058,1757080271943,-400.0,0.00026575,2]
[383674059,1757080271952,-400.0,0.00026575,2]
[383674060,1757080271962,-400.0,0.00026575,2]
[383674061,1757080271971,-400.0,0.00026575,2]
[383674062,1757080271981,-400.0,0.00026575,2]
[383674063,1757080271990,-400.0,0.00026575,2]
[383674064,1757080271999,-400.0,0.00026575,2]
[383674065,1757080272009,-338.06210724,0.00026575,2]
[383674066,1757080272019,-400.0,0.00026575,2]
[383674067,1757080272028,-455.55,0.00026575,2]
[383674068,1757080272038,-400.0,0.00026575,2]
[383674069,1757080272047,-778.08,0.00026575,2]
[383674070,1757080272056,-400.0,0.00026575,2]
[383674071,1757080272065,-430.24766781,0.00026575,2]
[383674072,1757080272075,-400.0,0.00026575,2]
[383674073,1757080272084,-400.0,0.00026575,2]